bitfinex/quotes_SOLUSD_20240816
["timestamp","ask_amount","ask_price","bid_price","bid_amount"]
[1723824634668,45.0,138.36,138.26,6.035]
[1723824634840,30.0,138.32,138.26,6.035]
[1723824635270,20.0,138.31,138.26,6.035]
[1723824635770,30.0,138.3,138.26,6.035]
[1723824635977,20.0,138.29,138.26,6.035]
[1723824636555,21.80800813,138.29,138.24,15.1434]
[1723824636858,30.0,138.28,138.22,6.2705]
[1723824637057,20.0,138.27,138.22,6.2705]
[1723824637846,30.0,138.26,138.22,6.2705]
[1723824638046,20.0,138.25,138.22,6.2705]
[1723824639368,30.0,138.26,138.22,6.2705]
[1723824642466,30.0,138.24,138.22,6.2705]
[1723824644068,3.10285619,138.31,138.22,6.2705]
[1723824644281,65.0,138.31,138.22,6.2705]
[1723824644970,3.18999226,138.32,138.22,6.2705]
[1723824645289,7.55697525,138.33,138.23,45.0]
[1723824645875,9.36500103,138.33,138.22,6.2705]
[1723824646155,10.60641815,138.33,138.22,6.2705]
[1723824646380,10.60641815,138.33,138.23,45.0]
[1723824646768,20.0,138.32,138.23,45.0]
[1723824647864,20.0,138.32,138.22,6.2705]
[1723824648483,45.0,138.31,138.22,6.2705]
[1723824648801,20.0,138.3,138.22,6.2705]
[1723824649685,45.0,138.29,138.22,6.2705]
[1723824650009,20.0,138.28,138.22,6.2705]
[1723824651920,20.0,138.28,138.2,15.6318]
[1723824652279,21.80836008,138.28,138.2,15.6318]
[1723824652480,20.0,138.28,138.2,15.6318]
[1723824654192,22.9099246,138.28,138.2,15.6318]
[1723824654812,24.7182841,138.28,138.2,15.6318]
[1723824655210,22.9099246,138.28,138.2,15.6318]
[1723824656586,2.9099246,138.28,138.2,15.6318]
[1723824656810,24.3741035,138.35,138.2,15.6318]
[1723824656811,7.56588117,138.32,138.2,15.6318]
[1723824657112,22.5659,138.35,138.21,45.25098]
[1723824657322,30.13002932,138.35,138.21,45.25098]
[1723824657516,30.13002932,138.35,138.21,46.69717221]
[1723824657831,30.13002932,138.35,138.21,45.25098]
[1723824658116,1.80778253,138.34,138.21,45.25098]
[1723824658480,30.13002932,138.35,138.21,45.25098]
[1723824658679,30.13002932,138.35,138.21,45.0]
[1723824658900,31.93809579,138.35,138.21,45.0]
[1723824659107,20.0,138.34,138.21,45.0]
[1723824659788,45.0,138.33,138.21,45.0]
[1723824659994,20.0,138.32,138.2,15.6318]
[1723824660303,15.1837,138.3,138.19,6.3593]
[1723824660611,65.0,138.29,138.19,6.3593]
[1723824662211,65.0,138.29,138.2,45.0]
[1723824662419,65.0,138.29,138.21,0.67710825]
[1723824662597,65.0,138.29,138.2,45.0]
[1723824662792,20.0,138.29,138.2,45.0]
[1723824662998,15.1837,138.3,138.2,45.0]
[1723824663310,16.3509,138.34,138.21,0.80491574]
[1723824663490,16.3509,138.34,138.22,15.72889]
[1723824663691,16.3509,138.34,138.23,53.80586071]
[1723824663901,16.3509,138.34,138.23,45.0]
[1723824664202,19.41690294,138.34,138.23,45.0]
[1723824665221,20.0,138.33,138.23,45.0]
[1723824667098,63.17673873,138.33,138.22,15.6034]
[1723824667487,45.0,138.32,138.22,15.6034]
[1723824667685,20.0,138.31,138.22,15.6034]
[1723824668718,20.0,138.33,138.23,45.0]
[1723824670595,19.41690294,138.34,138.24,1.44612965]
[1723824670919,19.41690294,138.34,138.23,45.0]
[1723824672030,45.0,138.33,138.23,45.0]
[1723824672217,21.80803351,138.32,138.22,15.6034]
[1723824672520,20.0,138.32,138.22,15.6034]
[1723824672689,45.0,138.31,138.22,15.6034]
[1723824672890,20.0,138.3,138.22,15.6034]
[1723824673916,21.80808866,138.3,138.22,15.6034]
[1723824674215,1.80808866,138.29,138.22,15.6034]
[1723824674919,20.0,138.3,138.22,15.6034]
[1723824676021,20.0,138.3,138.19,22.5448]
[1723824676327,45.0,138.29,138.19,22.5448]
[1723824676535,36.0866,138.28,138.19,6.3593]
[1723824679215,45.0,138.27,138.16,16.1855]
[1723824679419,30.0,138.24,138.15,6.1806]
[1723824679804,21.80897186,138.23,138.15,6.1806]
[1723824680105,20.0,138.23,138.15,6.1806]
[1723824681340,21.80920393,138.23,138.13,15.8368]
[1723824681510,20.0,138.23,138.13,15.8368]
[1723824681838,30.0,138.21,138.09,23.1815]
[1723824682028,1.80950576,138.2,138.09,23.1815]
[1723824682225,66.80950576,138.2,138.09,23.1815]
[1723824682928,30.0,138.18,138.09,23.1815]
[1723824684454,30.0,138.18,138.1,45.0]
[1723824684802,30.0,138.18,138.07,21.498]
[1723824685007,20.0,138.17,138.07,21.498]
[1723824685229,30.0,138.16,138.07,21.498]
[1723824686414,30.0,138.16,138.08,45.25098]
[1723824687112,30.0,138.16,138.1,7.2411]
[1723824687408,30.0,138.16,138.11,45.0]
[1723824687825,2.81102644,138.2,138.11,45.0]
[1723824688043,15.8433,138.22,138.11,45.0]
[1723824688540,15.8433,138.22,138.1,45.0]
[1723824689245,20.0,138.21,138.1,45.0]
[1723824689414,20.0,138.21,138.1,52.241]
[1723824689615,18.71836352,138.22,138.11,7.49138]
[1723824689830,18.71836352,138.22,138.12,45.0]
[1723824690030,18.71836352,138.22,138.13,0.12549]
[1723824690952,7.56934201,138.28,138.14,6.1856]
[1723824691160,7.56934201,138.28,138.15,52.48938]
[1723824691161,21.7999,138.27,138.15,52.48938]
[1723824691449,21.7999,138.27,138.15,45.25098]
[1723824692150,2.83239402,138.29,138.19,7.236]
[1723824692329,16.1305,138.3,138.2,45.25098]
[1723824692724,16.1305,138.3,138.21,45.0]
[1723824692924,16.1305,138.3,138.21,6.2917]
[1723824693159,16.1305,138.3,138.22,45.0]
[1723824693448,16.1305,138.3,138.17,24.6219]
[1723824693663,16.1305,138.3,138.18,45.12549]
[1723824693825,1.80847753,138.29,138.17,6.5287]
[1723824694243,46.80847753,138.29,138.17,6.5287]
[1723824694458,20.0,138.28,138.17,6.5287]
[1723824694627,45.0,138.27,138.14,407.9959]
[1723824694970,20.0,138.26,138.14,22.6959]
[1723824695430,20.0,138.26,138.15,0.68922575]
[1723824695629,20.0,138.26,138.14,22.6959]
[1723824695945,21.80882107,138.26,138.15,45.0]
[1723824696252,22.6478,138.25,138.15,45.0]
[1723824696464,20.0,138.24,138.16,0.12549]
[1723824696771,20.0,138.26,138.16,0.25098]
[1723824696946,15.9946,138.28,138.16,0.25098]
[1723824697127,15.9946,138.28,138.16,0.89983406]
[1723824697326,15.9946,138.28,138.16,0.25098]
[1723824698271,20.0,138.27,138.17,0.65479506]
[1723824698668,20.0,138.27,138.16,0.25098]
[1723824699342,21.80860209,138.27,138.14,22.6959]
[1723824699557,46.80888581,138.26,138.14,22.6959]
[1723824699732,20.0,138.25,138.14,22.6959]
[1723824699935,46.80905379,138.24,138.09,7.2415]
[1723824700132,15.2247,138.22,138.1,21.1407]
[1723824700433,31.80928775,138.21,138.1,21.1407]
[1723824700626,21.80954468,138.2,138.1,21.1407]
[1723824700835,20.0,138.2,138.1,21.1407]
[1723824701257,30.0,138.19,138.1,21.1407]
[1723824701469,1.80955985,138.18,138.1,21.1407]
[1723824701931,30.0,138.19,138.1,21.1407]
[1723824702567,30.0,138.19,138.11,45.0]
[1723824704269,31.80942503,138.19,138.1,21.1407]
[1723824704472,31.80942503,138.19,138.1,6.1119]
[1723824704762,30.0,138.17,138.07,16.5986]
[1723824705061,20.0,138.16,138.07,16.5986]
[1723824706146,20.0,138.16,138.08,45.12549]
[1723824707440,18.02127939,138.15,138.06,7.3823044]
[1723824708778,16.2116,138.15,138.06,7.3823044]
[1723824709141,30.0,138.14,138.06,7.3823044]
[1723824709368,30.0,138.14,138.06,0.8133044]
[1723824709677,31.81024836,138.14,138.06,0.8133044]
[1723824709892,20.0,138.13,138.06,0.8133044]
[1723824710260,21.81033318,138.13,138.06,0.8133044]
[1723824710640,20.0,138.13,138.06,0.8133044]
[1723824710843,21.81041476,138.13,138.06,0.8133044]
[1723824711371,20.0,138.13,138.06,0.8133044]
[1723824711758,30.0,138.12,138.06,0.8133044]
[1723824713388,20.0,138.13,138.06,0.8133044]
[1723824713565,22.87827431,138.14,138.06,0.8133044]
[1723824713770,20.0,138.14,138.06,0.8133044]
[1723824718101,46.81034069,138.13,138.06,0.8133044]
[1723824718277,20.0,138.12,138.06,0.8133044]
[1723824718488,31.81040299,138.11,138.06,0.8133044]
[1723824718691,20.0,138.1,138.06,0.8133044]
[1723824719401,1.81062276,138.09,138.06,0.8133044]
[1723824719772,20.0,138.1,138.06,0.8133044]
[1723824719976,30.0,138.11,138.06,0.8133044]
[1723824721742,3.06393467,138.13,138.06,0.8133044]
[1723824721895,1.81043772,138.13,138.06,0.8133044]
[1723824723298,22.958,138.12,138.06,0.8133044]
[1723824723632,65.0,138.11,138.06,0.8133044]
[1723824723836,66.81100056,138.11,138.06,0.8133044]
[1723824724134,65.0,138.11,138.06,0.8133044]
[1723824724306,30.0,138.08,138.06,0.8133044]
[1723824724508,20.0,138.07,138.06,0.8133044]
[1723824725433,50.0,138.07,138.06,0.8133044]
[1723824725930,30.0,138.07,138.06,0.8133044]
[1723824726429,22.958,138.12,138.06,0.8133044]
[1723824728006,26.13260627,138.12,138.06,0.8133044]
[1723824728226,20.0,138.11,138.06,0.8133044]
[1723824730096,45.0,138.1,138.06,0.8133044]
[1723824730294,20.0,138.09,138.06,0.8133044]
[1723824731731,45.0,138.08,138.06,0.8133044]
[1723824731906,21.81107424,138.07,138.06,0.8133044]
[1723824732106,20.0,138.07,138.06,0.8133044]
[1723824732902,45.0,138.08,138.06,0.8133044]
[1723824733110,22.958,138.12,138.06,0.8133044]
[1723824733419,16.5785,138.12,138.06,0.8133044]
[1723824733717,19.4258447,138.12,138.06,0.8133044]
[1723824734028,2.8473447,138.12,138.06,0.8133044]
[1723824734228,23.2024991,138.15,138.06,0.8133044]
[1723824734530,7.54445503,138.17,138.07,6.3853]
[1723824734706,10.34898468,138.17,138.08,45.12549]
[1723824734909,2.80452965,138.17,138.08,45.12549]
[1723824735225,7.54126288,138.22,138.08,46.57324408]
[1723824735605,7.54126288,138.22,138.08,45.0]
[1723824735812,1.80986426,138.21,138.08,45.0]
[1723824736039,1.80991281,138.2,138.08,45.0]
[1723824736226,7.54126288,138.22,138.08,45.0]
[1723824736420,10.37669807,138.22,138.08,45.0]
[1723824736716,10.37669807,138.22,138.08,46.4473329]
[1723824737735,45.0,138.21,138.08,45.0]
[1723824737932,20.0,138.2,138.08,45.0]
[1723824738142,45.0,138.19,138.08,46.44741509]
[1723824738312,20.0,138.18,138.08,46.44741509]
[1723824739446,20.0,138.18,138.08,45.0]
[1723824740506,10.37669807,138.22,138.1,15.1815]
[1723824740739,2.83543519,138.22,138.12,6.5469]
[1723824741045,16.4555,138.24,138.13,46.44707019]
[1723824741346,16.4555,138.24,138.13,45.0]
[1723824742151,45.0,138.23,138.12,6.5469]
[1723824742334,45.0,138.23,138.13,45.0]
[1723824743015,19.30762451,138.24,138.14,1.44699718]
[1723824743235,20.0,138.23,138.14,46.44699718]
[1723824743638,20.0,138.23,138.14,1.44699718]
[1723824743831,20.0,138.23,138.13,45.0]
[1723824744549,1.80911331,138.22,138.12,6.5469]
[1723824744747,45.0,138.22,138.12,6.5469]
[1723824744938,20.0,138.21,138.12,6.5469]
[1723824745135,45.0,138.2,138.12,6.5469]
[1723824745338,20.0,138.19,138.12,6.5469]
[1723824745860,45.0,138.18,138.12,6.5469]
[1723824746034,20.0,138.17,138.12,6.5469]
[1723824746623,20.0,138.17,138.08,6.4728]
[1723824746824,45.0,138.16,138.08,6.4728]
[1723824747066,20.0,138.15,138.08,6.4728]
[1723824747224,20.0,138.17,138.08,6.4728]
[1723824748045,20.0,138.2,138.09,45.0]
[1723824748233,65.0,138.2,138.09,45.0]
[1723824748853,68.18683022,138.2,138.09,45.0]
[1723824755132,48.18683022,138.2,138.1,16.2696]
[1723824755334,3.18683022,138.2,138.12,6.1731]
[1723824755535,6.1172,138.25,138.12,6.1731]
[1723824755743,7.53930026,138.23,138.12,6.1731]
[1723824756270,19.6454561,138.24,138.12,6.1731]
[1723824756960,45.0,138.23,138.12,6.1731]
[1723824757971,20.0,138.22,138.12,6.1731]
[1723824758855,20.0,138.22,138.13,45.0]
[1723824760474,20.0,138.22,138.14,1.44739552]
[1723824760854,20.0,138.22,138.15,1.4473942]
[1723824761471,20.0,138.22,138.16,16.2448]
[1723824764773,46.80942604,138.21,138.12,21.5909]
[1723824764974,20.0,138.2,138.12,21.5909]
[1723824766691,45.0,138.19,138.12,21.5909]
[1723824766904,20.0,138.18,138.12,21.5909]
[1723824767402,20.0,138.2,138.12,21.5909]
[1723824767606,20.0,138.21,138.12,21.5909]
[1723824769819,2.91836899,138.23,138.15,15.8604]
[1723824770028,43.22067401,138.27,138.16,45.0]
[1723824770029,7.5356206,138.27,138.16,45.0]
[1723824770309,50.74474426,138.27,138.16,45.0]
[1723824770490,7.5356206,138.27,138.16,45.0]
[1723824770900,7.5356206,138.27,138.17,1.44706762]
[1723824771302,45.0,138.26,138.16,45.0]
[1723824772310,20.0,138.25,138.16,45.0]
[1723824772493,7.5356206,138.27,138.16,45.0]
[1723824772494,7.5356206,138.27,138.18,6.3558]
[1723824772692,7.5356206,138.27,138.19,61.314]
[1723824772897,45.220618,138.35,138.21,16.314]
[1723824773086,43.19138151,138.34,138.24,16.314]
[1723824773416,10.69657755,138.35,138.25,45.0]
[1723824773593,43.19138151,138.33,138.26,6.4701]
[1723824773797,10.69657755,138.35,138.26,6.4701]
[1723824775686,45.0,138.34,138.26,6.4701]
[1723824776082,43.1897612,138.33,138.26,6.4701]
[1723824776387,46.8081351,138.32,138.26,6.4701]
[1723824776786,20.0,138.31,138.26,6.4701]
[1723824777315,45.0,138.3,138.26,6.4701]
[1723824777622,20.0,138.29,138.26,6.4701]
[1723824778302,30.0,138.27,138.26,6.4701]
[1723824778503,50.0,138.27,138.26,6.4701]
[1723824779190,20.0,138.27,138.26,6.4701]
[1723824780711,3.04985377,138.3,138.26,6.4701]
[1723824780918,7.54408318,138.35,138.26,6.4701]
[1723824782020,45.0,138.34,138.26,6.4701]
[1723824783133,20.0,138.33,138.26,6.4701]
[1723824784231,10.6273523,138.35,138.26,6.4701]
[1723824784232,20.0,138.34,138.26,6.4701]
[1723824784438,20.0,138.34,138.28,15.6904]
[1723824787449,1.80777396,138.33,138.28,15.6904]
[1723824787767,45.0,138.33,138.28,15.6904]
[1723824787970,20.0,138.32,138.28,15.6904]
[1723824788376,21.80789822,138.32,138.26,6.4701]
[1723824788543,45.0,138.31,138.26,6.4701]
[1723824788749,20.0,138.3,138.26,6.4701]
[1723824791979,2.89775813,138.34,138.26,6.4701]
[1723824792316,43.18434433,138.39,138.27,45.0]
[1723824793278,43.18434433,138.39,138.28,22.6508]
[1723824793767,47.25033502,138.43,138.29,45.0]
[1723824794082,43.18434433,138.42,138.29,45.0]
[1723824794377,43.18434433,138.42,138.3,1.44423718]
[1723824794557,43.18434433,138.42,138.29,45.0]
[1723824794760,19.33228084,138.43,138.29,45.0]
[1723824794980,62.49882254,138.43,138.29,45.0]
[1723824795162,19.33228084,138.43,138.29,45.0]
[1723824795472,21.13933868,138.43,138.28,22.6508]
[1723824795666,1.80705784,138.42,138.28,22.6508]
[1723824795989,62.49570383,138.43,138.28,22.6508]
[1723824796200,66.80739419,138.42,138.28,22.6508]
[1723824796374,74.3465639,138.42,138.28,22.6508]
[1723824797091,72.53916971,138.42,138.28,22.6508]
[1723824797777,1.8074467,138.41,138.28,22.6508]
[1723824797973,74.34660169,138.42,138.28,22.6508]
[1723824798206,72.53916971,138.42,138.28,22.6508]
[1723824798914,74.34639415,138.42,138.28,22.6508]
[1723824799970,77.47273501,138.42,138.28,22.6508]
[1723824801009,75.66551057,138.42,138.28,22.6508]
[1723824801611,77.47273867,138.42,138.28,22.6508]
[1723824801770,30.66551057,138.42,138.29,22.6085]
[1723824801976,30.66551057,138.42,138.3,45.0]
[1723824802379,10.66551057,138.42,138.3,45.0]
[1723824803099,10.66551057,138.42,138.29,23.20126707]
[1723824803300,10.66551057,138.42,138.3,45.0]
[1723824803477,45.0,138.41,138.3,45.0]
[1723824803689,1.80698653,138.4,138.3,45.0]
[1723824804019,1.80707153,138.39,138.3,45.0]
[1723824804381,20.0,138.4,138.29,22.6085]
[1723824804616,1.80715379,138.39,138.29,22.6085]
[1723824805209,20.0,138.4,138.29,22.6085]
[1723824805401,1.80733964,138.39,138.29,22.6085]
[1723824805933,46.80733964,138.39,138.29,22.6085]
[1723824806226,20.0,138.38,138.29,22.6085]
[1723824806427,45.0,138.37,138.29,22.6085]
[1723824806589,20.0,138.36,138.29,22.6085]
[1723824808003,1.80731128,138.35,138.29,22.6085]
[1723824808318,20.0,138.36,138.29,22.6085]
[1723824808521,21.80731482,138.36,138.29,22.6085]
[1723824808712,1.80731487,138.35,138.29,22.6085]
[1723824809708,23.12072244,138.36,138.29,22.6085]
[1723824810292,1.80745802,138.35,138.29,22.6085]
[1723824811025,23.12072244,138.36,138.29,22.6085]
[1723824811240,24.92817995,138.36,138.29,22.6085]
[1723824811442,23.12072244,138.36,138.29,22.6085]
[1723824813621,20.0,138.36,138.29,22.6085]
[1723824814927,1.80714598,138.35,138.29,22.6085]
[1723824815125,20.0,138.36,138.29,22.6085]
[1723824815325,1.80724628,138.35,138.29,22.6085]
[1723824815648,24.60384129,138.36,138.29,22.6085]
[1723824815817,45.0,138.35,138.26,6.0156]
[1723824816147,20.0,138.34,138.26,6.0156]
[1723824818858,1.80759741,138.33,138.26,6.0156]
[1723824819852,20.0,138.34,138.26,6.0156]
[1723824820848,45.0,138.33,138.26,6.0156]
[1723824821265,21.8077897,138.32,138.26,6.0156]
[1723824821834,20.0,138.32,138.26,6.0156]
[1723824822528,7.54014504,138.35,138.26,6.0156]
[1723824822529,20.0,138.34,138.26,6.0156]
[1723824823334,2.79646304,138.36,138.27,45.0]
[1723824823540,21.8697,138.41,138.27,45.0]
[1723824823843,7.54066959,138.39,138.27,45.0]
[1723824824251,7.54066959,138.39,138.28,21.3637]
[1723824824452,7.54066959,138.39,138.29,45.0]
[1723824824964,9.34761286,138.39,138.28,21.3637]
[1723824825736,65.0,138.38,138.28,21.3637]
[1723824827056,7.54066959,138.39,138.28,21.3637]
[1723824827379,16.256,138.44,138.29,45.12549]
[1723824827542,7.53432921,138.42,138.29,45.12549]
[1723824827745,7.53432921,138.42,138.29,52.35659]
[1723824828655,7.53432921,138.42,138.3,22.8562]
[1723824828854,7.53432921,138.42,138.31,45.0]
[1723824829085,7.53432921,138.42,138.31,46.44534577]
[1723824829655,7.53432921,138.42,138.31,45.0]
[1723824830390,20.0,138.41,138.31,45.0]
[1723824831397,20.0,138.41,138.32,1.44508098]
[1723824831550,20.0,138.41,138.31,45.0]
[1723824832480,20.0,138.41,138.32,1.44473897]
[1723824832793,20.0,138.41,138.31,45.0]
[1723824833558,20.0,138.41,138.32,0.12549]
[1723824834890,20.0,138.41,138.31,45.0]
[1723824835259,20.0,138.41,138.32,1.44331305]
[1723824836887,20.0,138.41,138.34,15.5365]
[1723824837082,7.53432921,138.42,138.35,1.44312612]
[1723824837280,7.53432921,138.42,138.35,45.0]
[1723824837498,3.09280647,138.44,138.37,6.0944]
[1723824837692,15.6127,138.47,138.38,1.44482598]
[1723824838574,15.6127,138.47,138.37,6.0944]
[1723824838575,3.10438912,138.47,138.37,6.0944]
[1723824838779,7.53738709,138.48,138.4,6.3136]
[1723824838985,0.2,138.5,138.41,1.56921963]
[1723824839199,0.2,138.5,138.41,46.56921963]
[1723824839405,0.2,138.5,138.41,45.12549]
[1723824839709,43.32840316,138.5,138.41,45.12549]
[1723824839892,0.2,138.5,138.41,45.12549]
[1723824841212,0.2,138.5,138.42,21.3516]
[1723824842314,0.2,138.5,138.43,45.0]
[1723824843882,0.2,138.5,138.45,6.4223]
[1723824844089,0.2,138.5,138.46,62.8849344]
[1723824844596,16.296,138.53,138.48,6.4223]
[1723824844801,16.296,138.53,138.49,45.12549]
[1723824845485,16.296,138.53,138.49,46.56899662]
[1723824845823,0.8133044,138.54,138.49,46.56899662]
[1723824845824,0.8133044,138.54,138.5,15.73329]
[1723824845988,0.8133044,138.54,138.51,46.56861547]
[1723824846191,0.8133044,138.54,138.51,45.0]
[1723824846415,0.8133044,138.54,138.51,46.20189869]
[1723824846619,0.8133044,138.54,138.51,45.0]
[1723824847004,0.8133044,138.54,138.5,15.6078]
[1723824847189,0.8133044,138.54,138.51,45.0]
[1723824847518,0.8133044,138.54,138.5,15.6078]
[1723824847727,0.8133044,138.54,138.51,45.0]
[1723824848215,0.8133044,138.54,138.52,0.12549]
[1723824848406,0.8133044,138.54,138.53,6.2734]
[1723824848724,0.8133044,138.54,138.53,51.39889]
[1723824849092,16.0052,138.65,138.53,51.39889]
[1723824849306,16.0052,138.65,138.54,45.0]
[1723824849518,16.0052,138.65,138.54,45.12549]
[1723824850221,13.53541422,138.67,138.55,1.44086106]
[1723824850420,6.0027,138.67,138.55,1.44086106]
[1723824850594,8.34954982,138.68,138.55,1.44086106]
[1723824851292,8.34954982,138.68,138.57,15.0044]
[1723824852089,8.34954982,138.68,138.53,22.6039]
[1723824852836,65.0,138.67,138.53,22.6039]
[1723824853596,65.0,138.67,138.54,45.0]
[1723824854332,8.34954982,138.68,138.55,0.12549]
[1723824854615,8.34954982,138.68,138.55,0.25098]
[1723824854821,0.8133044,138.68,138.55,0.25098]
[1723824855525,0.8133044,138.68,138.56,6.3443]
[1723824855697,0.8133044,138.68,138.57,45.25098]
[1723824857088,0.8133044,138.68,138.58,16.5561]
[1723824857089,20.8133044,138.68,138.58,16.5561]
[1723824857393,20.8133044,138.68,138.59,0.12549]
[1723824857595,0.8133044,138.68,138.59,45.0]
[1723824857799,0.8133044,138.68,138.58,16.5561]
[1723824858022,2.61658075,138.68,138.58,16.5561]
[1723824858197,0.8133044,138.68,138.58,16.5561]
[1723824859300,0.8133044,138.68,138.59,45.0]
[1723824859502,45.8133044,138.68,138.58,16.5561]
[1723824859714,20.0,138.67,138.58,16.5561]
[1723824860298,0.8133044,138.68,138.58,16.5561]
[1723824860707,0.8133044,138.68,138.59,45.0]
[1723824861908,0.8133044,138.68,138.58,16.5561]
[1723824862218,45.8133044,138.68,138.56,6.3443]
[1723824862422,20.0,138.67,138.56,6.3443]
[1723824863021,21.80329504,138.67,138.56,6.3443]
[1723824863219,20.0,138.67,138.56,6.3443]
[1723824864705,0.8133044,138.68,138.57,45.12549]
[1723824864909,0.8133044,138.68,138.57,45.0]
[1723824865129,45.8133044,138.68,138.57,45.0]
[1723824865331,20.0,138.67,138.57,45.0]
[1723824865530,16.578,138.66,138.57,45.0]
[1723824865731,20.0,138.65,138.57,45.0]
[1723824866108,1.80348775,138.64,138.56,6.3443]
[1723824866303,45.0,138.64,138.56,6.3443]
[1723824866503,20.0,138.63,138.56,6.3443]
[1723824866703,20.0,138.63,138.54,16.4988]
[1723824866905,27.54795853,138.63,138.52,6.6575]
[1723824867644,30.0,138.59,138.48,6.6575]
[1723824867935,20.0,138.58,138.48,6.6575]
[1723824868106,21.8045713,138.58,138.48,6.6575]
[1723824868429,45.0,138.57,138.48,6.6575]
[1723824868604,16.4437,138.55,138.45,6.5064]
[1723824869013,20.0,138.54,138.45,6.5064]
[1723824869432,30.0,138.51,138.45,6.5064]
[1723824869810,30.0,138.51,138.4,15.8489]
[1723824870029,20.0,138.5,138.4,15.8489]
[1723824870232,26.1635,138.5,138.39,6.1666]
[1723824870419,20.0,138.5,138.39,6.1666]
[1723824870622,30.0,138.46,138.39,6.1666]
[1723824873333,30.0,138.46,138.4,45.0]
[1723824873928,30.0,138.46,138.41,7.35029]
[1723824874129,30.0,138.46,138.42,45.12549]
[1723824874555,30.0,138.46,138.43,0.12549]
[1723824876525,30.0,138.46,138.42,45.0]
[1723824876723,30.0,138.46,138.41,45.0]
[1723824876943,30.0,138.46,138.42,0.12549]
[1723824877346,30.0,138.46,138.41,45.0]
[1723824877545,30.0,138.46,138.39,6.1666]
[1723824878536,30.0,138.46,138.36,401.1489]
[1723824878838,20.0,138.45,138.36,385.3]
[1723824879030,30.0,138.44,138.36,385.3]
[1723824879232,20.0,138.43,138.35,6.3665]
[1723824879925,30.0,138.41,138.35,6.3665]
[1723824881260,30.0,138.41,138.31,39.5865]
[1723824881636,30.0,138.41,138.32,1.44517254]
[1723824881837,30.0,138.41,138.32,1.44502562]
[1723824882065,30.0,138.41,138.33,1.44502562]
[1723824882464,30.0,138.41,138.31,46.8164]
[1723824882640,30.0,138.41,138.32,45.12549]
[1723824883465,30.0,138.41,138.33,18.0719]
[1723824883683,30.0,138.41,138.34,45.12549]
[1723824884033,30.0,138.42,138.34,45.12549]
[1723824884244,30.0,138.42,138.34,45.0]
[1723824884637,20.0,138.41,138.34,45.0]
[1723824886775,30.0,138.42,138.35,0.12549]
[1723824887065,3.18482515,138.45,138.35,0.12549]
[1723824887253,20.0,138.45,138.34,45.0]
[1723824887447,20.0,138.45,138.33,45.12549]
[1723824887653,20.0,138.45,138.33,45.0]
[1723824887844,20.0,138.45,138.31,21.5116]
[1723824887845,20.0,138.45,138.32,45.0]
[1723824888046,20.0,138.45,138.33,0.12549]
[1723824888539,45.0,138.44,138.32,45.0]
[1723824888874,20.0,138.43,138.32,45.0]
[1723824889173,20.0,138.43,138.32,52.2295]
[1723824889372,20.0,138.45,138.35,7.2278]
[1723824889665,20.0,138.45,138.36,45.12549]
[1723824889850,9.26500911,138.46,138.36,45.12549]
[1723824890367,6.1797,138.46,138.36,45.12549]
[1723824891266,20.0,138.45,138.36,52.35279]
[1723824891572,13.87278064,138.5,138.37,24.207]
[1723824891765,13.87278064,138.5,138.38,45.25098]
[1723824892071,9.20122494,138.5,138.38,61.45578]